Cogmind - Beta 10.2 @@@ ROGUE MODE // 2021.06.10 @ 13:03:12 Player: whisper Result: Destroyed by 8R-AWN with 8R-AWN's Boregun Performance ------------- Evolutions (1) 500 Regions Visited (5) 1000 Robots Destroyed (30) 150 Value Destroyed (741) 741 Prototype IDs (23) 460 Alien Tech Used (0) 0 Bonus (288) 288 TOTAL SCORE: 3139 Bonus ------- High Alert Combat Kills 30 Aligned with FarCom 300 Friendly Fire -42 Cogmind --------- Core Integrity 0/400 Matter 38/300 Energy 78/100 System Corruption 2% Temperature Cool (0) Movement Core (550) Ox10 Location -9/Exiles Parts ------- > --- POWER (1) -------- (None) > --- PROPULSION (2) --- (None) > --- UTILITY (2) ------ High-capacity Storage Unit Armor Integrity Analyzer > --- WEAPON (4) ------- (None) > --- INVENTORY (12) --- Heavy Assault Rifle Peak State ------------ > --- POWER ------------ Improved Ion Engine > --- PROPULSION ------- Light Treads Light Treads > --- UTILITY ---------- High-capacity Storage Unit Armor Integrity Analyzer > --- WEAPON ----------- Assault Rifle Heavy Assault Rifle Heavy Assault Rifle Katana > --- INVENTORY -------- Ion Engine Nuclear Core Nuclear Core Fission Core Light Treads Light Treads Light Treads Light Treads Assault Rifle Assault Rifle Assault Rifle Improved Light Cannon [Rating: 17] Favorites ----------- Power Improved Ion Engine Engine Improved Ion Engine Propulsion Light Treads Treads Light Treads Leg Aluminum Leg Utility Large Storage Unit Device Sensor Array Storage Large Storage Unit Processor Armor Integrity Analyzer Weapon Assault Rifle Ballistic Gun Assault Rifle Ballistic Cannon Improved Light Cannon Slashing Weapon Katana Build | -11 -10 -10 -9 -9 -9 ------- Run | Scr Mat Min Mat Min Exi Slots Evolved 2 | . . . 2 . . Power . | . . . . . . Propulsion . | . . . . . . Utility . | . . . . . . Weapon 2 | . . . 2 . . Parts Attached 42 | 6 6 1 14 . 15 Power 4 | 1 . 1 1 . 1 Engine 4 | 1 . 1 1 . 1 Core . | . . . . . . Reactor . | . . . . . . Propulsion 12 | 2 . . 6 . 4 Treads 6 | . . . 2 . 4 Leg 6 | 2 . . 4 . . Wheel . | . . . . . . Hover . | . . . . . . Flight . | . . . . . . Utility 6 | 1 3 . . . 2 Device 1 | . 1 . . . . Storage 4 | 1 2 . . . 1 Processor 1 | . . . . . 1 Hackware . | . . . . . . Protection . | . . . . . . Artifact . | . . . . . . Weapon 20 | 2 3 . 7 . 8 Energy Gun . | . . . . . . Energy Cannon . | . . . . . . Ballistic Gun 16 | 2 3 . 6 . 5 Ballistic Cannon 2 | . . . 1 . 1 Launcher . | . . . . . . Special Weapon . | . . . . . . Impact Weapon . | . . . . . . Slashing Weapon 2 | . . . . . 2 Piercing Weapon . | . . . . . . Special Melee Weapon . | . . . . . . Unidentified Prototypes . | . . . . . . Parts Lost 17 | . . 1 1 . 15 Power 3 | . . 1 . . 2 Propulsion 6 | . . . . . 6 Utility . | . . . . . . Weapon 8 | . . . 1 . 7 Highest Loss Streak 6 | . . 1 1 . 6 Average Slot Usage (%) 97 | . 97 99 99 100 95 Engine 11 | . 14 13 11 11 9 Treads 13 | . . . 2 22 21 Leg 9 | . 28 28 19 . . Storage 19 | . 23 28 22 22 15 Processor 3 | . . . . . 6 Ballistic Gun 33 | . 28 28 38 33 34 Ballistic Cannon 4 | . . . 4 11 4 Slashing Weapon 1 | . . . . . 2 Naked Turns . | . . . . . . Heaviest Build 50 | 9 39 39 48 48 50 Greatest Support 40 | 20 20 20 40 40 40 Greatest Overweight (x) 3 | . 1 1 3 1 1 Average Overweight (x) . | . . 1 1 1 . Largest Inventory Capacity 18 | 6 16 16 16 16 18 Average Capacity 14 | 5 12 16 16 16 13 Most Carried 16 | 6 14 16 16 16 16 Average Carried 12 | 2 8 15 15 16 11 Final Capacity 16 | 6 16 16 16 16 12 Final Carried 16 | 6 14 16 16 16 1 Class Distribution -------------------- 37% | Gunner 29% | Mutant 22% | Scavenger-Gunner 10% | Scavenger-Mutant Dominant Class ---------------- Mutant | -10/Materials Mutant | -10/Mines Gunner | -9/Materials Gunner | -9/Mines Scavenger-Gunner | -9/Exiles Resources | -11 -10 -10 -9 -9 -9 ----------- Run | Scr Mat Min Mat Min Exi Matter Collected 907 | 260 92 48 426 61 20 Remotely . | . . . . . . Salvage Created 1125 | . 106 48 668 199 104 Parts 72 | . 12 5 46 9 . Haulers Intercepted 2 | . 1 . 1 . . Recyclers Shooed 3 | . . . 3 . . Parts Field Recycled . | . . . . . . Retrieved Matter . | . . . . . . Parts Self-Destructed . | . . . . . . Prevented . | . . . . . . Kills | -11 -10 -10 -9 -9 -9 ------- Run | Scr Mat Min Mat Min Exi Combat Hostiles Destroyed 32 | . 2 3 15 5 7 Guns 29 | . 2 3 15 2 7 Cannons 3 | . . . . 3 . Classes Destroyed 8 | . 3 . 4 . 1 Worker 2 | . . . 2 . . Hauler 2 | . 1 . 1 . . Watcher 1 | . 1 . . . . Swarmer 9 | . 2 3 4 . . Grunt 11 | . . . 7 4 . Duelist 2 | . . . 1 1 . Sentry 3 | . . . 3 . . Assembled 7 | . . . . . 7 Best Kill Streak 6 | . 2 3 5 3 6 Combat Bots Only 6 | . 2 3 5 3 6 Max Kills in Single Turn 2 | . 1 1 2 1 1 Gunslinging 1 | . . . 1 . . Exploded . | . . . . . . Melee . | . . . . . . Uniques/NPCs Destroyed . | . . . . . . Combat | -11 -10 -10 -9 -9 -9 -------- Run | Scr Mat Min Mat Min Exi Damage Taken 2696 | . 85 130 387 101 1993 Core 427 | . 6 14 53 . 354 Absorbed by Shields . | . . . . . . Core Remaining (%) 96 | 100 . 92 . . . Volleys Fired 91 | . 16 12 35 7 21 Largest 4 | . 2 2 4 4 4 Hottest 102 | . 40 40 80 99 102 Shots Fired 270 | . 32 24 122 24 68 Gun 264 | . 32 24 122 21 65 Cannon 6 | . . . . 3 3 Launcher . | . . . . . . Special . | . . . . . . Kinetic 270 | . 32 24 122 24 68 Thermal . | . . . . . . Explosive . | . . . . . . Electromagnetic . | . . . . . . Robot Hit Streak 21 | . 4 4 21 9 10 Robot Miss Streak 4 | . 2 2 3 2 4 Penetration Max . | . . . . . . Secondary Targets 10 | . . . 6 . 4 Max Gunslinging Chain 1 | . . . 1 . 1 Shots Hit Robots 199 | . 16 15 80 18 70 Core Hits 74 | . 7 3 34 10 20 Critical Hits . | . . . . . . Critical Kills . | . . . . . . Critical Parts Destroyed . | . . . . . . Melee Attacks 43 | . . . . . 43 Impact . | . . . . . . Slashing 43 | . . . . . 43 Piercing . | . . . . . . Sneak Attacks . | . . . . . . Combat Hostiles . | . . . . . . Follow-up Attacks . | . . . . . . Damage Inflicted 2749 | . 117 153 804 208 1467 Guns 1697 | . 117 153 804 145 478 Cannons 132 | . . . . 63 69 Explosions . | . . . . . . Melee 920 | . . . . . 920 Ramming . | . . . . . . Kinetic 1829 | . 117 153 804 208 547 Thermal . | . . . . . . Explosive . | . . . . . . Electromagnetic . | . . . . . . Impact . | . . . . . . Slashing 920 | . . . . . 920 Piercing . | . . . . . . Highest Corruption 2 | . . . 2 2 2 Average Corruption 2 | . . . 2 2 2 Corruption Purged . | . . . . . . Effects 26 | . . . 7 5 14 Message Errors 8 | . . . 2 3 3 Heat Flow Errors 2 | . . . . 1 1 Energy Discharges 4 | . . . . . 4 Data Loss (minor) 7 | . . . 1 1 5 Targeting Errors 5 | . . . 4 . 1 Overload Shots . | . . . . . . Overflow Damage 25 | . . . . . 25 Projectiles . | . . . . . . Explosions . | . . . . . . Melee 25 | . . . . . 25 Knockbacks 2 | . . . . . 2 Impact . | . . . . . . Kinetic 2 | . . . . . 2 Secondary . | . . . . . . Self-Inflicted Damage . | . . . . . . Shots . | . . . . . . Rammed . | . . . . . . Targets Rammed . | . . . . . . Kicked . | . . . . . . Crushed . | . . . . . . Highest Temperature 206 | . . . 99 202 206 Average Temperature 72 | . . . 43 87 93 Received Heat Transfer 345 | . . . 108 57 180 Siege Activations . | . . . . . . Robots Corrupted . | . . . . . . Combat Hostiles . | . . . . . . Parts Fried . | . . . . . . Impact Corruptions . | . . . . . . Robots Melted . | . . . . . . Combat Hostiles . | . . . . . . Parts Melted . | . . . . . . Heat Transferred . | . . . . . . Parts Sabotaged . | . . . . . . Parts Stolen . | . . . . . . Parts Stripped . | . . . . . . Power Chain Reactions . | . . . . . . Missiles Intercepted . | . . . . . . Alert | -11 -10 -10 -9 -9 -9 ------- Run | Scr Mat Min Mat Min Exi Peak Influence 497 | . 84 92 497 235 . Initial 115 | . . 32 . 115 . Average 138 | . 43 36 262 189 . Maximum Alert Level 2 | . . . 2 1 . Low Security (%) 75 | 100 100 100 30 77 . Level 1 17 | . . . 44 22 . Level 2 6 | . . . 25 . . Level 3 . | . . . . . . Level 4 . | . . . . . . Level 5 . | . . . . . . High Security . | . . . . . . Max Security . | . . . . . . Squads Dispatched 1 | . . . 1 . . Investigation . | . . . . . . Extermination . | . . . . . . Reinforcement 1 | . . . 1 . . Assault . | . . . . . . Garrison . | . . . . . . Intercept . | . . . . . . Construction Impeded . | . . . . . . Haulers Reinforced . | . . . . . . Stealth | -11 -10 -10 -9 -9 -9 --------- Run | Scr Mat Min Mat Min Exi Distress Signals 3 | . . . 3 . . Communications Jammed . | . . . . . . Distress Signals . | . . . . . . Times Spotted 51 | . 5 3 26 4 13 Peak Tracking Total 12 | . 3 3 8 2 12 Tactical Retreats 5 | . . . 2 . 3 Traps | -11 -10 -10 -9 -9 -9 ------- Run | Scr Mat Min Mat Min Exi Traps Triggered 1 | . . . 1 . . Indirectly . | . . . . . . Trap Hack Attempts . | . . . . . . Triggered . | . . . . . . Disarmed . | . . . . . . Reprogrammed . | . . . . . . Reused . | . . . . . . Traps Extracted . | . . . . . . Installed . | . . . . . . Triggered . | . . . . . . Machines | -11 -10 -10 -9 -9 -9 ---------- Run | Scr Mat Min Mat Min Exi Machines Disabled 4 | . . . . . 4 Max in Single Turn 1 | . . . . . 1 Machines Sabotaged . | . . . . . . Garrisons Compromised . | . . . . . . Overloaded Fab Kills . | . . . . . . Fab Network Shutdowns . | . . . . . . Hacking | -11 -10 -10 -9 -9 -9 --------- Run | Scr Mat Min Mat Min Exi Machines Accessed 2 | . . . . . 2 Terminals . | . . . . . . Fabricators . | . . . . . . Repair Stations . | . . . . . . Recycling Units . | . . . . . . Scanalyzers . | . . . . . . Garrison Access . | . . . . . . Total Hacks 2 | . . . . . 2 Successful 2 | . . . . . 2 Failed . | . . . . . . Catastrophic . | . . . . . . Database Lockouts . | . . . . . . Manual 1 | . . . . . 1 Terminals . | . . . . . . Fabricators . | . . . . . . Repair Stations . | . . . . . . Recycling Units . | . . . . . . Scanalyzers . | . . . . . . Garrison Access . | . . . . . . Terminal Hacks 2 | . . . . . 2 Record 1 | . . . . . 1 EX-Prototype ID Bank 1 | . . . . . 1 Fabricator Hacks . | . . . . . . Repair Station Hacks . | . . . . . . Recycling Unit Hacks . | . . . . . . Scanalyzer . | . . . . . . Garrison Access Hacks . | . . . . . . Unauthorized Hacks . | . . . . . . Terminals . | . . . . . . Fabricators . | . . . . . . Repair Stations . | . . . . . . Recycling Units . | . . . . . . Scanalyzers . | . . . . . . Garrison Access . | . . . . . . Data Cores Recovered . | . . . . . . Used . | . . . . . . Hacking Detections . | . . . . . . Full Trace Events . | . . . . . . Feedback Events . | . . . . . . Feedback Blocked . | . . . . . . Robot Schematics Acquired . | . . . . . . Robots Built . | . . . . . . Matter . | . . . . . . Time . | . . . . . . Total Robot Build Rating . | . . . . . . Part Schematics Acquired . | . . . . . . Parts Built . | . . . . . . Matter . | . . . . . . Time . | . . . . . . Total Part Build Rating . | . . . . . . Parts Repaired . | . . . . . . Time . | . . . . . . Parts Recycled . | . . . . . . Recycled Matter . | . . . . . . Retrieved Matter . | . . . . . . Retrieved Components . | . . . . . . Parts Scanalyzed . | . . . . . . Part Schematics Acquired . | . . . . . . Parts Damaged . | . . . . . . Bothacking | -11 -10 -10 -9 -9 -9 ------------ Run | Scr Mat Min Mat Min Exi Used RIF Installer . | . . . . . . Robots Hacked . | . . . . . . Non-combat . | . . . . . . Combat . | . . . . . . Robot Hacks Applied . | . . . . . . Relay Couplers Released . | . . . . . . Robots Rewired . | . . . . . . Allies Hacked . | . . . . . . Hacks Repelled . | . . . . . . Allies | -11 -10 -10 -9 -9 -9 -------- Run | Scr Mat Min Mat Min Exi Total Allies . | . . . . . . Largest Group . | . . . . . . Highest-Rated Group . | . . . . . . Highest-Rated Ally . | . . . . . . Total Orders . | . . . . . . Ally Attacks . | . . . . . . Total Damage . | . . . . . . Kills . | . . . . . . Allies Corrupted . | . . . . . . Allies Melted . | . . . . . . Intel | -11 -10 -10 -9 -9 -9 ------- Run | Scr Mat Min Mat Min Exi Robot Analysis Total . | . . . . . . Derelict Logs Recovered 1 | . . 1 . . . Drone Launches . | . . . . . . Drone Recoveries . | . . . . . . Exploration | -11 -10 -10 -9 -9 -9 ------------- Run | Scr Mat Min Mat Min Exi Turns Passed 3062 | 64 261 405 431 413 1488 Spaces Moved 1512 | 44 146 244 155 214 709 Core 5 | 5 . . . . . Treads 941 | . . . 18 214 709 Legs 566 | 39 146 244 137 . . Wheels . | . . . . . . Hover . | . . . . . . Flight . | . . . . . . Fastest Speed 50 | 50 120 150 150 180 160 Average Speed 168 | 112 137 150 171 180 179 Slowest Speed 210 | 120 150 150 210 180 180 Overloaded Moves . | . . . . . . Propulsion Burnouts . | . . . . . . Robots Hopped . | . . . . . . Cave-ins Triggered . | . . . . . . Exploration Rate (%) 40 | 5 30 66 17 52 70 Regions Visited 5 Branch Regions 3 Pre-discovered Areas 2 | . . 1 . . 1 Known Exits Taken 1 | . . 1 . . . Unknown Exits Taken 4 | 1 1 . 1 1 . Scrap Searched 2 | . . 1 . 1 . Spaces Dug . | . . . . . . Terrain Destroyed . | . . . . . . Melee . | . . . . . . Projectile . | . . . . . . AOE . | . . . . . . Terrain Rammed . | . . . . . . Walls Destroyed . | . . . . . . Machines Disabled . | . . . . . . Actions | -11 -10 -10 -9 -9 -9 --------- Run | Scr Mat Min Mat Min Exi Total 1786 | 55 179 259 250 227 816 Wait 47 | . 4 1 29 7 6 Move 1507 | 43 145 243 154 213 709 Hop . | . . . . . . Pick Up 28 | 6 5 2 7 . 8 Fast Attach 12 | 6 2 1 3 . . Attach 13 | . . . 3 . 10 Detach 1 | . 1 . . . . Swap 17 | . 4 . 8 . 5 Drop 27 | . 2 . 11 . 14 Fire 91 | . 16 12 35 7 21 Melee 43 | . . . . . 43 Ram . | . . . . . . Kick . | . . . . . . Crush . | . . . . . . Escape Stasis . | . . . . . . Rewire . | . . . . . . Trap . | . . . . . . Miscellaneous . | . . . . . . Route ------- -11/Scrapyard -10/Materials (discovered 2 exits: *Mat / [*Min]) -10/Mines -9/Materials (discovered 2 exits: [*Min] / [*Sto]) -9/Mines (discovered 2 exits: [*Mat] / *Exi) -9/Exiles History --------- Turn | Location | Event 3 | -11/Scrapyard | Discovered new exit (range 15) 65 | -11/Scrapyard | Entered Materials 198 | -10/Materials | Discovered new exit (range 7) 307 | -10/Materials | Build established: Mutant 318 | -10/Materials | Discovered new exit (range 6) 326 | -10/Materials | Entered Mines 597 | -10/Mines | Identified exit to Materials 640 | -10/Mines | Learned location of Storage (-9) 731 | -10/Mines | Entered Materials 731 | -9/Materials | Evolved 2 slots: Weapon x2 1017 | -9/Materials | Build established: Gunner 1061 | -9/Materials | Discovered new exit (range 13) 1154 | -9/Materials | Discovered new exit (range 16) 1162 | -9/Materials | Entered Mines 1485 | -9/Mines | Discovered new exit (range 6) 1566 | -9/Mines | Deemed a non-threat by the Exiles lab entrance 1568 | -9/Mines | Discovered new exit (range 5) 1575 | -9/Mines | Entered Exiles 1626 | -9/Exiles | Met 8R-AWN 1658 | -9/Exiles | Met EX-HEX 1728 | -9/Exiles | Met EX-DEC 1736 | -9/Exiles | Learned location of Zion (-6) 1766 | -9/Exiles | Met EX-BIN 1791 | -9/Exiles | Aligned with FarCom system 1793 | -9/Exiles | Given EX-Vault access code 1836 | -9/Exiles | Opened EX-Vault 1881 | -9/Exiles | Warned to stay clear of 0b10 Research branches 2153 | -9/Exiles | Build established: Scavenger-Gunner 2830 | -9/Exiles | Attacked by the Exiles 2848 | -9/Exiles | Build established: Scavenger-Mutant 2919 | -9/Exiles | Lost 6 parts (1p2n3w) 2940 | -9/Exiles | Core integrity fell below 50% 2986 | -9/Exiles | Lost 3 parts (1p2n) 3031 | -9/Exiles | Core integrity fell below 20% 3058 | -9/Exiles | Lost 5 parts (2n3w) 3063 | -9/Exiles | Destroyed by 8R-AWN with 8R-AWN's Boregun Last Messages --------------- 03007_ Penetrated by HV Slug. 03007_ HV Slug penetrates Machine. 03011_ Penetrated by HV Slug. 03011_ Critical hit. 03011_ Lgt. Treads destroyed. 03014_ Destroyed Prototype Ballistic Gun. 03015_ Penetrated by HV Slug. 03027_ Lgt. Treads destroyed. 03030_ Penetrated by HV Slug. 03048_ HV Slug penetrates Wall. 03051_ Penetrated by HV Slug. 03055_ HV Slug penetrates Machine. 03055_ HV Slug penetrates Wall. 03058_ Penetrated by HV Slug. 03061_ Destroyed Prototype Device. 03062_ Penetrated by HV Slug. 03062_ Critical hit. 03062_ Katana destroyed. 03063_ System corrupted: Energy discharge (-22). 03063_ Penetrated by HV Slug. Map ----- +----------------------------------------------------+ | ?????????????????????????????????????????????????? | | ?????????????????????????????????????????????????? | | ?????????????????????????????????????????????????? | | ?????????????????????????????????????????????????? | | ?????????????????????????????????????????????????? | | ?????????????????????????????????????????????????? | | ?????????????????????????????????????????????????? | | ?????????????????????????????????????????????????? | | ?????????????????????????????????????????????????? | | ?????????????????????????????????????????????????? | | ????????????????????????????????????????????????#" | | ????????????????????????????????????????????????#" | | ????????????????????????????????????????????????#" | | ??# ????????????????????????????????????????????#" | | ??# ????????????????????????????????????????????? | | ??# ???????????????????????????????????????????? | | ???# ??????????????????????????????????????????? | | ???# ?????????????????????????????????????????? | | ????# ??????????????#######???????????????????? | | ????# #######??????#!!! #???????????????????? | | ????# #""##?????# "#???????????????????? | | ?????# !=! #?????# "#???????????????????? | | ?????##" ! ##???## ""#????????????####???? | | ?????#"" #####" ""#???????????? """??? | | ?????#### ##" g""#????????????" """#?? | | ????????## ; @ #??????????????" #?? | | ?????????#"## #?????????????"" #?? | | ?????????##?#### ##????????????"" "#?? | | ???????????????#;# "#???????????? ""??? | | ?????????########" ###???????????" "???? | | ?????????# !!"""" ###?????????# #???? | | ?????????#! #;# #####???### ###?# | | ?????????#! = #### ""#####X# #"### | | ?????????#! != ##??# %%%% """" | | ?????????# !"" " "###???# ; %% "" " | | ?????????######;###?????#### " | | ?????????????# #???????????### | | ????????????# #??????????????### | | ???????????# #?????????????????## | | ??????????# #???????????????????## | | ?????????? #?????????????????????##" | | ????????? ????????????????????????#"" | | ???????? ????????????????????????##" | | ?????????????????????????????????#"" | | ????????????????????????????????##""" "" | | ????????????????????????????????#""" """ | | ????????????????????????????????#""" "" | | ????????????????????????????????#"" # | | ????????????????????????????????#""" | | ????????????????????????????????#"" | +----------------------------------------------------+ Best States ------------- Heat Dissipation 28 Energy Generation 12 Energy Capacity 265 Matter Stores 300 Matter Capacity 300 Sight Range 16 Robot Scan Range 10 Terrain Scan Density 10 Evasion (%) 40 Armor Integrity Analysis 33 Recoil Reduction 2 Item Schematics ----------------- None Robot Schematics ------------------ None Fabricated ------------ Nothing Alien Tech Used ----------------- None Achievements -------------- None Challenges ------------ None Game ------ Seed GrenadeNullDrive Manual? 0 Play Time 00:27:29 Cumulative 126.8 hours Start 2021.06.10 @ 10:19:55 End 2021.06.10 @ 13:03:12 Sessions 3 Manual Loads 0 Difficulty Rogue Special Mode None Game No. 46 Rogue 46 Adventurer 0 Explorer 0 Win Type - Total 3 Types 2/0/0/1/0/0/0/0/0 Lore% 62 Gallery% 70 Achievement% 53 Wizard Run 0 Options --------- ASCII 1 Keyboard 1 Movement Vi Keybinds 0 Fullscreen 1 Font 20/CogTall Map View 98x62 Tactical HUD 1 Map Filters NONE Filters NONE Steam 1 RUN: a2d7119b-46a8-4d2e-b5bd-0c1f0c15607f